Cogmind - Beta 10.2 @@@ ROGUE MODE // 2020.11.20 @ 20:16:18 // Halloween2020/ForbiddenLore Player: blelm Result: Self-destructed Performance ------------- Evolutions (2) 1000 Regions Visited (7) 1400 Robots Destroyed (105) 525 Value Destroyed (2291) 2291 Prototype IDs (4) 80 Alien Tech Used (0) 0 Bonus (43) 43 TOTAL SCORE: 5339 Bonus ------- High Alert Combat Kills 43 Cogmind --------- Core Integrity 456/550 Matter 279/300 Energy 280/280 System Corruption 0% Temperature Cool (0) Movement Treading (200) Ox2 Location -8/Materials Parts ------- > --- POWER (1) -------- Heavy Ion Engine > --- PROPULSION (3) --- Medium Treads Armored Wheel Armored Wheel > --- UTILITY (5) ------ Improved Heat Sink Large Storage Unit Large Storage Unit Large Storage Unit Reactive Plating > --- WEAPON (2) ------- EM Pulse Cannon Improved Assault Rifle > --- INVENTORY (22) --- Light Treads Medium Treads Medium Treads Medium Treads Large Storage Unit High-capacity Battery (400) High-capacity Matter Pod (200) Improved Signal Interpreter Reactive Plating Reactive Plating Insulated Plating Hacking Suite System Shield Heavy Assault Rifle Gauss Rifle Rocket Launcher Improved Grenade Launcher Improved Grenade Launcher Heavy Flail Katana Peak State ------------ > --- POWER ------------ Heavy Ion Engine > --- PROPULSION ------- Medium Treads Armored Wheel Armored Wheel > --- UTILITY ---------- Improved Heat Sink Large Storage Unit Large Storage Unit Large Storage Unit Reactive Plating > --- WEAPON ----------- Improved Assault Rifle Gauss Rifle > --- INVENTORY -------- Light Treads Medium Treads Medium Treads Medium Treads Large Storage Unit High-capacity Battery High-capacity Matter Pod Improved Signal Interpreter Reactive Plating Reactive Plating Reactive Plating Insulated Plating Hacking Suite System Shield EM Pulse Cannon Heavy Assault Rifle Rocket Launcher Improved Grenade Launcher Improved Grenade Launcher Heavy Flail Katana [Rating: 32] Favorites ----------- Power Heavy Ion Engine Engine Heavy Ion Engine Propulsion Light Treads Treads Light Treads Leg Aluminum Leg Wheel Armored Wheel Utility Large Storage Unit Device Improved Heat Sink Storage Large Storage Unit Processor Advanced Visual Processing Unit Protection Reactive Plating Weapon Shotgun Energy Cannon EM Pulse Cannon Ballistic Gun Shotgun Ballistic Cannon Improved Light Cannon Launcher Rocket Launcher Special Weapon Mining Laser Build | -11 -10 -10 -9 -9 -9 -8 -8 ------- Run | Scr Mat Min Mat Min Exi Min Mat Slots Evolved 4 | . . . 2 . . . 2 Power . | . . . . . . . . Propulsion 1 | . . . . . . . 1 Utility 3 | . . . 2 . . . 1 Weapon . | . . . . . . . . Parts Attached 79 | 3 3 7 36 . 1 4 25 Power 8 | . . . 7 . . . 1 Engine 8 | . . . 7 . . . 1 Core . | . . . . . . . . Reactor . | . . . . . . . . Propulsion 16 | 3 . 1 8 . . . 4 Treads 8 | 1 . . 5 . . . 2 Leg . | . . . . . . . . Wheel 8 | 2 . 1 3 . . . 2 Hover . | . . . . . . . . Flight . | . . . . . . . . Utility 23 | . 3 . 10 . 1 . 9 Device 2 | . . . . . . . 2 Storage 8 | . 2 . 5 . 1 . . Processor 3 | . 1 . . . . . 2 Hackware . | . . . . . . . . Protection 10 | . . . 5 . . . 5 Artifact . | . . . . . . . . Weapon 32 | . . 6 11 . . 4 11 Energy Gun . | . . . . . . . . Energy Cannon 4 | . . . . . . . 4 Ballistic Gun 17 | . . 4 6 . . 2 5 Ballistic Cannon 1 | . . . 1 . . . . Launcher 7 | . . . 3 . . 2 2 Special Weapon 3 | . . 2 1 . . . . Impact Weapon . | . . . . . . . . Slashing Weapon . | . . . . . . . . Piercing Weapon . | . . . . . . . . Special Melee Weapon . | . . . . . . . . Unidentified Prototypes 2 | . . . 1 . . . 1 Parts Lost 8 | . . 1 3 . . . 4 Power 2 | . . . 1 . . . 1 Propulsion 3 | . . 1 1 . . . 1 Utility 2 | . . . 1 . . . 1 Weapon 1 | . . . . . . . 1 Highest Loss Streak 1 | . . 1 1 . . . 1 Average Slot Usage (%) 99 | . 98 99 98 100 100 100 96 Engine 11 | . 14 14 11 11 11 11 9 Treads 11 | . 14 14 10 11 11 11 9 Wheel 12 | . 14 13 11 11 11 11 16 Storage 30 | . 15 28 32 33 33 33 27 Protection 7 | . . . 9 11 11 11 10 Ballistic Gun 19 | . 28 24 16 22 22 17 12 Ballistic Cannon 1 | . . . 4 . . . . Naked Turns . | . . . . . . . . Heaviest Build 88 | 11 19 21 64 64 72 73 88 Greatest Support 24 | 20 16 20 20 20 12 12 24 Greatest Overweight (x) 6 | 3 1 1 5 5 5 6 6 Average Overweight (x) 3 | 1 . 1 2 4 5 5 3 Largest Inventory Capacity 22 | 6 10 10 20 20 22 22 22 Average Capacity 16 | 6 6 10 14 20 20 22 22 Most Carried 22 | 6 6 10 20 20 21 21 22 Average Carried 14 | 5 5 7 13 20 20 21 21 Final Capacity 22 | 6 10 10 20 20 22 22 22 Final Carried 21 | 4 6 10 20 20 21 21 20 Class Distribution -------------------- 52% | Hauler-Mutant 45% | Mutant Dominant Class ---------------- Mutant | -10/Materials Mutant | -10/Mines Mutant | -9/Materials Hauler-Mutant | -9/Mines Hauler-Mutant | -9/Exiles Hauler-Mutant | -8/Mines Hauler-Mutant | -8/Materials Resources | -11 -10 -10 -9 -9 -9 -8 -8 ----------- Run | Scr Mat Min Mat Min Exi Min Mat Matter Collected 3069 | 248 32 504 952 258 168 190 717 Remotely . | . . . . . . . . Salvage Created 3797 | 61 47 1125 1047 109 . 220 1188 Parts 187 | 2 3 32 73 2 . 21 54 Haulers Intercepted 9 | . . . 6 . . . 3 Recyclers Shooed 5 | . . 2 . . . 2 1 Parts Field Recycled . | . . . . . . . . Retrieved Matter . | . . . . . . . . Parts Self-Destructed . | . . . . . . . . Prevented . | . . . . . . . . Kills | -11 -10 -10 -9 -9 -9 -8 -8 ------- Run | Scr Mat Min Mat Min Exi Min Mat Combat Hostiles Destroyed 63 | . 3 11 19 . . 12 18 Guns 39 | . 3 11 14 . . 2 9 Cannons 5 | . . . 3 . . . 2 AOE 18 | . . . 2 . . 10 6 Classes Destroyed 14 | 1 1 4 7 . . . 1 Worker 5 | . . 1 2 . . . 2 Builder 1 | . . . 1 . . . . Tunneler 7 | . . 2 1 1 . 2 1 Hauler 9 | . . . 6 . . . 3 Recycler 17 | 1 . 12 . 1 . 1 2 Operator 1 | . . . 1 . . . . Watcher 5 | . . . 2 . . . 3 Swarmer 21 | . 3 6 3 . . 9 . Grunt 25 | . . 2 8 . . 2 13 Brawler 1 | . . . 1 . . . . Duelist 2 | . . . 1 . . 1 . Sentry 10 | . . . 6 . . . 4 Hunter 1 | . . . . . . . 1 Assembled 3 | . . 3 . . . . . Best Kill Streak 9 | 1 3 3 5 2 . 3 9 Combat Bots Only 5 | . 3 3 5 . . 3 5 Max Kills in Single Turn 4 | 1 1 1 2 1 . 3 4 Gunslinging . | . . . . . . . . Exploded 3 | . . . 2 . . 3 2 Melee . | . . . . . . . . Uniques/NPCs Destroyed . | . . . . . . . . Combat | -11 -10 -10 -9 -9 -9 -8 -8 -------- Run | Scr Mat Min Mat Min Exi Min Mat Damage Taken 2471 | . 74 299 805 . . 142 1151 Core 290 | . 45 38 95 . . 18 94 Absorbed by Shields . | . . . . . . . . Core Remaining (%) 79 | 100 . 66 . . . 71 . Volleys Fired 255 | 3 4 65 85 9 . 15 74 Largest 2 | 2 2 2 2 2 . 2 2 Hottest 126 | 40 40 100 100 46 . 46 126 Shots Fired 484 | 6 8 126 163 19 . 23 139 Gun 374 | 6 8 123 113 19 . 15 90 Cannon 86 | . . . 43 . . . 43 Launcher 15 | . . . 1 . . 8 6 Special 9 | . . 3 6 . . . . Kinetic 417 | 6 8 123 156 19 . 15 90 Thermal 9 | . . 3 6 . . . . Explosive 15 | . . . 1 . . 8 6 Electromagnetic 43 | . . . . . . . 43 Robot Hit Streak 15 | 3 4 15 12 4 . 6 13 Robot Miss Streak 5 | 1 1 3 4 3 . 3 5 Penetration Max . | . . . . . . . . Secondary Targets 4 | . 1 1 . . . . 2 Max Gunslinging Chain 1 | . 1 1 . . . . 1 Shots Hit Robots 320 | 4 5 78 111 12 . 13 97 Core Hits 163 | 2 3 33 46 4 . 19 56 Critical Hits 1 | . . . . . . 1 . Critical Kills . | . . . . . . . . Critical Parts Destroyed 1 | . . . . . . 1 . Melee Attacks . | . . . . . . . . Impact . | . . . . . . . . Slashing . | . . . . . . . . Piercing . | . . . . . . . . Sneak Attacks . | . . . . . . . . Combat Hostiles . | . . . . . . . . Follow-up Attacks . | . . . . . . . . Damage Inflicted 7152 | 54 73 1091 2071 182 . 920 2761 Guns 4029 | 54 72 1091 1399 181 . 135 1097 Cannons 1296 | . . . 552 . . . 744 Explosions 1777 | . . . 72 . . 785 920 Melee . | . . . . . . . . Ramming 2 | . 1 . . 1 . . . Kinetic 4581 | 54 72 1091 1951 181 . 135 1097 Thermal 108 | . . . 48 . . . 60 Explosive 1717 | . . . 72 . . 785 860 Electromagnetic 744 | . . . . . . . 744 Impact . | . . . . . . . . Slashing . | . . . . . . . . Piercing . | . . . . . . . . Highest Corruption 6 | . . . 6 6 6 6 . Average Corruption 5 | . . . 5 6 6 6 . Corruption Purged . | . . . . . . . . Effects 92 | . . . 38 18 9 27 . Message Errors 21 | . . . 6 5 3 7 . Matter Fused 25 | . . . 11 4 1 9 . Heat Flow Errors 4 | . . . 1 3 . . . Energy Discharges 13 | . . . 5 2 2 4 . Data Loss (minor) 9 | . . . 3 1 2 3 . Data Loss (major) 6 | . . . 3 1 1 1 . Misfires 2 | . . . . 1 . 1 . Targeting Errors 12 | . . . 9 1 . 2 . Overload Shots . | . . . . . . . . Overflow Damage 48 | . . . . . . 15 33 Projectiles 22 | . . . . . . . 22 Explosions 26 | . . . . . . 15 11 Melee . | . . . . . . . . Knockbacks 10 | . . . 10 . . . . Impact . | . . . . . . . . Kinetic 9 | . . . 9 . . . . Secondary 1 | . . . 1 . . . . Self-Inflicted Damage 49 | . . . . . . . 49 Shots 3 | . . . . . . . 3 Rammed 3 | . 1 . . 1 . . 1 Targets Rammed 3 | . 1 . . 1 . . 1 Kicked . | . . . . . . . . Crushed . | . . . . . . . . Highest Temperature 312 | . . 64 216 272 . 40 312 Average Temperature 51 | . . 20 44 119 . 14 51 Received Heat Transfer 960 | . 6 66 276 . . 63 549 Siege Activations . | . . . . . . . . Robots Corrupted 1 | . . . . . . . 1 Combat Hostiles 1 | . . . . . . . 1 Parts Fried 5 | . . . . . . . 5 Impact Corruptions . | . . . . . . . . Robots Melted . | . . . . . . . . Combat Hostiles . | . . . . . . . . Parts Melted . | . . . . . . . . Heat Transferred 150 | . . . 100 . . . 50 Parts Sabotaged . | . . . . . . . . Parts Stolen . | . . . . . . . . Parts Stripped . | . . . . . . . . Power Chain Reactions 1 | . . . . . . . 1 Missiles Intercepted . | . . . . . . . . Alert | -11 -10 -10 -9 -9 -9 -8 -8 ------- Run | Scr Mat Min Mat Min Exi Min Mat Peak Influence 491 | 5 146 155 491 160 . 271 471 Initial 160 | . 3 56 20 160 . . 21 Average 145 | 4 52 65 279 80 . 108 202 Maximum Alert Level 2 | . . . 2 . . 1 2 Low Security (%) 75 | 100 100 100 38 100 . 86 47 Level 1 15 | . . . 24 . . 13 47 Level 2 9 | . . . 37 . . . 5 Level 3 . | . . . . . . . . Level 4 . | . . . . . . . . Level 5 . | . . . . . . . . High Security . | . . . . . . . . Max Security . | . . . . . . . . Squads Dispatched 8 | . 1 1 1 . . . 5 Investigation 4 | . 1 1 . . . . 2 Extermination . | . . . . . . . . Reinforcement 2 | . . . 1 . . . 1 Assault . | . . . . . . . . Garrison 2 | . . . . . . . 2 Intercept . | . . . . . . . . Construction Impeded 1 | . . . . . . . 1 Haulers Reinforced . | . . . . . . . . Stealth | -11 -10 -10 -9 -9 -9 -8 -8 --------- Run | Scr Mat Min Mat Min Exi Min Mat Distress Signals 8 | . 2 1 1 . . . 4 Communications Jammed . | . . . . . . . . Distress Signals . | . . . . . . . . Times Spotted 84 | . 6 11 31 . . 10 26 Peak Tracking Total 6 | . 4 3 6 . . 3 6 Tactical Retreats 11 | . 1 . 5 . . . 5 Traps | -11 -10 -10 -9 -9 -9 -8 -8 ------- Run | Scr Mat Min Mat Min Exi Min Mat Traps Triggered 3 | . 1 . 1 . . . 1 Indirectly . | . . . . . . . . Trap Hack Attempts . | . . . . . . . . Triggered . | . . . . . . . . Disarmed . | . . . . . . . . Reprogrammed . | . . . . . . . . Reused . | . . . . . . . . Traps Extracted . | . . . . . . . . Installed . | . . . . . . . . Triggered . | . . . . . . . . Machines | -11 -10 -10 -9 -9 -9 -8 -8 ---------- Run | Scr Mat Min Mat Min Exi Min Mat Machines Disabled 7 | . . 1 2 . . 3 1 Max in Single Turn 2 | . . 1 1 . . 2 1 Machines Sabotaged . | . . . . . . . . Garrisons Compromised . | . . . . . . . . Overloaded Fab Kills . | . . . . . . . . Fab Network Shutdowns . | . . . . . . . . Hacking | -11 -10 -10 -9 -9 -9 -8 -8 --------- Run | Scr Mat Min Mat Min Exi Min Mat Machines Accessed 16 | . 2 1 6 . 1 . 6 Terminals 13 | . 2 . 6 . . . 5 Fabricators . | . . . . . . . . Repair Stations . | . . . . . . . . Recycling Units . | . . . . . . . . Scanalyzers 1 | . . . . . . . 1 Garrison Access . | . . . . . . . . Total Hacks 46 | . 7 1 11 . 1 . 26 Successful 21 | . 3 1 3 . 1 . 13 Failed 24 | . 3 . 8 . . . 13 Catastrophic 4 | . . . 1 . . . 3 Database Lockouts 1 | . 1 . . . . . . Manual 26 | . 7 . 9 . . . 10 Terminals 38 | . 7 . 11 . . . 20 Fabricators . | . . . . . . . . Repair Stations . | . . . . . . . . Recycling Units . | . . . . . . . . Scanalyzers 6 | . . . . . . . 6 Garrison Access . | . . . . . . . . Terminal Hacks 13 | . 3 1 2 . 1 . 6 Record 1 | . . . . . 1 . . Part Schematic 2 | . 1 . . . . . 1 Robot Analysis 2 | . 2 . . . . . . Prototype ID Bank 1 | . . . . . . . 1 Open Door 1 | . . 1 . . . . . Branch Access Points 1 | . . . 1 . . . . Terminal Index 1 | . . . . . . . 1 Locate Traps 3 | . . . 1 . . . 2 Hauler Manifests 1 | . . . . . . . 1 Fabricator Hacks . | . . . . . . . . Repair Station Hacks . | . . . . . . . . Recycling Unit Hacks . | . . . . . . . . Scanalyzer 5 | . . . . . . . 5 Insert Component 2 | . . . . . . . 2 Analyze 3 | . . . . . . . 3 Garrison Access Hacks . | . . . . . . . . Unauthorized Hacks 3 | . . . 1 . . . 2 Terminals 3 | . . . 1 . . . 2 Botnet 1 | . . . . . . . 1 Operators 2 | . . . 1 . . . 1 Fabricators . | . . . . . . . . Repair Stations . | . . . . . . . . Recycling Units . | . . . . . . . . Scanalyzers . | . . . . . . . . Garrison Access . | . . . . . . . . Data Cores Recovered . | . . . . . . . . Used . | . . . . . . . . Hacking Detections 11 | . 2 . 4 . . . 5 Full Trace Events 2 | . . . 1 . . . 1 Feedback Events 1 | . . . 1 . . . . Corruption 1 | . . . 1 . . . . Feedback Blocked . | . . . . . . . . Robot Schematics Acquired . | . . . . . . . . Robots Built . | . . . . . . . . Matter . | . . . . . . . . Time . | . . . . . . . . Total Robot Build Rating . | . . . . . . . . Part Schematics Acquired 4 | . 1 . . . . . 3 Parts Built . | . . . . . . . . Matter . | . . . . . . . . Time . | . . . . . . . . Total Part Build Rating . | . . . . . . . . Parts Repaired . | . . . . . . . . Time . | . . . . . . . . Parts Recycled . | . . . . . . . . Recycled Matter . | . . . . . . . . Retrieved Matter . | . . . . . . . . Retrieved Components . | . . . . . . . . Parts Scanalyzed 2 | . . . . . . . 2 Part Schematics Acquired 2 | . . . . . . . 2 Parts Damaged . | . . . . . . . . Bothacking | -11 -10 -10 -9 -9 -9 -8 -8 ------------ Run | Scr Mat Min Mat Min Exi Min Mat Used RIF Installer . | . . . . . . . . Robots Hacked . | . . . . . . . . Non-combat . | . . . . . . . . Combat . | . . . . . . . . Robot Hacks Applied . | . . . . . . . . Relay Couplers Released . | . . . . . . . . Robots Rewired . | . . . . . . . . Allies Hacked . | . . . . . . . . Hacks Repelled . | . . . . . . . . Allies | -11 -10 -10 -9 -9 -9 -8 -8 -------- Run | Scr Mat Min Mat Min Exi Min Mat Total Allies . | . . . . . . . . Largest Group . | . . . . . . . . Highest-Rated Group . | . . . . . . . . Highest-Rated Ally . | . . . . . . . . Total Orders . | . . . . . . . . Ally Attacks . | . . . . . . . . Total Damage . | . . . . . . . . Kills . | . . . . . . . . Allies Corrupted . | . . . . . . . . Allies Melted . | . . . . . . . . Intel | -11 -10 -10 -9 -9 -9 -8 -8 ------- Run | Scr Mat Min Mat Min Exi Min Mat Robot Analysis Total 2 | . 2 . . . . . . Derelict Logs Recovered 3 | . . 1 . 2 . . . Drone Launches . | . . . . . . . . Drone Recoveries . | . . . . . . . . Exploration | -11 -10 -10 -9 -9 -9 -8 -8 ------------- Run | Scr Mat Min Mat Min Exi Min Mat Turns Passed 6460 | 33 238 1712 1496 805 287 970 919 Spaces Moved 4029 | 12 212 1072 839 555 203 646 490 Core 6 | 6 . . . . . . . Treads 35 | . . 4 30 1 . . . Legs 5 | 5 . . . . . . . Wheels 3983 | 1 212 1068 809 554 203 646 490 Hover . | . . . . . . . . Flight . | . . . . . . . . Fastest Speed 100 | 100 100 110 110 140 140 140 110 Average Speed 125 | 158 100 110 125 140 140 143 120 Slowest Speed 220 | 200 110 180 200 220 140 150 150 Overloaded Moves . | . . . . . . . . Propulsion Burnouts . | . . . . . . . . Robots Hopped . | . . . . . . . . Cave-ins Triggered . | . . . . . . . . Exploration Rate (%) 64 | 2 44 99 73 99 54 99 42 Regions Visited 7 Branch Regions 4 Pre-discovered Areas 2 | . . . . 1 1 . . Known Exits Taken 1 | . . . 1 . . . . Unknown Exits Taken 6 | 1 1 1 . 1 1 1 . Scrap Searched 3 | . . 1 . 1 . 1 . Spaces Dug 5 | . . 3 2 . . . . Terrain Destroyed 133 | . . 3 16 . . 64 50 Melee . | . . . . . . . . Projectile 8 | . . 3 5 . . . . AOE 125 | . . . 11 . . 64 50 Terrain Rammed . | . . . . . . . . Walls Destroyed . | . . . . . . . . Machines Disabled . | . . . . . . . . Actions | -11 -10 -10 -9 -9 -9 -8 -8 --------- Run | Scr Mat Min Mat Min Exi Min Mat Total 4986 | 21 229 1478 1131 566 207 666 688 Wait 521 | . . 327 127 . . 2 65 Move 4022 | 11 211 1071 838 554 202 645 490 Hop . | . . . . . . . . Pick Up 49 | 1 5 6 19 1 2 . 15 Fast Attach 20 | . 2 1 12 . . . 5 Attach 15 | 2 . 2 4 . . . 7 Detach 4 | . 1 . 1 . . . 2 Swap 44 | 1 1 4 20 . 1 4 13 Drop 53 | 3 4 2 25 1 2 . 16 Fire 255 | 3 4 65 85 9 . 15 74 Melee . | . . . . . . . . Ram 1 | . . . . 1 . . . Kick . | . . . . . . . . Crush 2 | . 1 . . . . . 1 Escape Stasis . | . . . . . . . . Rewire . | . . . . . . . . Trap . | . . . . . . . . Miscellaneous . | . . . . . . . . Route ------- -11/Scrapyard -10/Materials -10/Mines (discovered 2 exits: *Mat x2) -9/Materials (discovered 3 exits: *Mat x2 / *Min) -9/Mines (discovered 4 exits: *Mat x2 / *Exi / [*Zio]) -9/Exiles (discovered 2 exits: [*Min x2]) -8/Mines (discovered 2 exits: *Mat x2) -8/Materials (discovered 3 exits: *Fac x3) History --------- Turn | Location | Event 10 | -11/Scrapyard | Discovered new exit (range 3) 34 | -11/Scrapyard | Entered Materials 185 | -10/Materials | Discovered new exit (range 16) 253 | -10/Materials | Central database locked down 272 | -10/Materials | Entered Mines 317 | -10/Mines | Build established: Mutant 362 | -10/Mines | Assembled infested the area 367 | -10/Mines | Assisted by a Guerilla fighting off Assembled 913 | -10/Mines | Discovered new exit (range 11) 948 | -10/Mines | Discovered new exit (range 9) 1462 | -10/Mines | Met a Derelict shopkeep closing up shop 1984 | -10/Mines | Entered Materials 1984 | -9/Materials | Evolved 2 slots: Utility x2 2325 | -9/Materials | Discovered new exit (range 15) 2640 | -9/Materials | Identified exit to Mines 3114 | -9/Materials | Discovered new exit (range 3) 3362 | -9/Materials | Build established: Hauler-Mutant 3480 | -9/Materials | Entered Mines 3507 | -9/Mines | Met a Derelict bent on vengeance 3555 | -9/Mines | Received a Rocket Launcher from a helpful Derelict 3602 | -9/Mines | Learned location of 1 exit from Materials 3885 | -9/Mines | Discovered new exit (range 12) 3893 | -9/Mines | Learned location of Storage (-7) 4192 | -9/Mines | A Derelict revealed a hidden shortcut to a safe place 4207 | -9/Mines | Discovered new exit (range 10) 4278 | -9/Mines | Deemed a non-threat by the Exiles lab entrance 4279 | -9/Mines | Discovered new exit (range 5) 4285 | -9/Mines | Entered Exiles 4308 | -9/Exiles | Discovered new exit (range 15) 4320 | -9/Exiles | Met 8R-AWN 4341 | -9/Exiles | Met EX-HEX 4435 | -9/Exiles | Met EX-DEC 4461 | -9/Exiles | Learned location of Zion (-7) 4555 | -9/Exiles | Discovered new exit (range 14) 4572 | -9/Exiles | Entered Mines 5014 | -8/Mines | Discovered new exit (range 11) 5326 | -8/Mines | Discovered new exit (range 9) 5542 | -8/Mines | Entered Materials 5542 | -8/Materials | Evolved 2 slots: Propulsion x1, Utility x1 5543 | -8/Materials | Identified exit to Factory 6145 | -8/Materials | Discovered exit to Factory (range 16) 6330 | -8/Materials | Garrison activated, responded to threat 6461 | -8/Materials | Self-destructed Last Messages --------------- 06345_ K-01 Serf collects debris. 06345_ U-05 Engineer lays Concrete. 06346_ K-01 Serf collects debris. 06346_ Acquired 48 matter. 06368_ EM Pulse Cannon destroyed. 06423_ Slug penetrates G-47 Trooper. 06423_ Reactive Plating destroyed. 06426_ Slug penetrates G-47 Trooper. 06439_ G-47 Trooper destroyed. 06443_ K-01 Serf collects debris. 06444_ Acquired 49 matter. 06446_ Penetrated by Slug. 06448_ K-01 Serf collects debris. 06449_ Penetrated by Slug. 06449_ T-07 Excavator destroyed. 06451_ K-01 Serf collects debris. 06459_ Slammed into U-05 Engineer. 06460_ ALERT: Construction progress impeded, dispatching reinforcements to local area. 06461_ K-01 Serf collects debris. Map ----- +----------------------------------------------------+ | ??????????????????#!! % # #????# # | | ??????????????????###=#!== #????# # | | ???????????????????? =%%= !!!??# """" + | | ??????????????????? % %==# !!! # """"% # | | ?????????????????? =* # !!! # """" # | | ?????????????????###### #^ ^ # | | ??????????????????? | # # * # #######+ | | ??????????????????? # # # """" ""#????? | | ??????????????????? # ######## """" ""#????? | | ??????????????????? ! # #??????# ^"""" T"#????? | | ??????????????????? + #??????# ""#????? | | ??????????????????? # #??????# ""#????? | | ??????????????????? # +??????#^ ] ###????? | | ??????????????????? # #??????#"" #??????? | | ??????????????????????# #??????#"T #??????? | | ??????????????????????# ########"" #??????? | | ??????????????????????# ######?? | | ??????????????????????+ | | ??????????????????????# h ########## | | ??????????????????????# ########### ########## | | ??????????????????????#u #?????????# # # | | ?????????????########## ########### # # | | ?????????????# ## # u # ! ## # # | | ?????????????# # # """ ## # # | | ?????????????# # # """ + + # | | ?????????????# # k@# """ ## # # | | ?????????????# + |* ## # # | | ?????????????# # =!# """ ## # # | | ?????????????# # %# """ + # # | | ?????????????# # # """ ############### | | ?????????????# # # #?????????????? | | ?????????????########## ##########?????????????? | | ??????????????????????# #??????????????????????? | | ????####??????????????# #??????????????????????? | | ???? #??????????????# #??????????????????????? | | ???? #??????????????# #??????????????????????? | | ???## ##??????????????# #??????????????????????? | | #### #??????######### #??????########????????? | | [! *! #??????# ## #??????# = T #????????? | | #+## #??????# ## #??????# #????????? | | ## #??????#[// ## #??????# """ #????????? | | ## #??????#[// ## #??????# """ *#????????? | | ## #??????#// ## #??????# """ #????????? | | ## ##?????# ## ######## #????????? | | # ##########+### ##########+####???????? | | # [ = #???????? | | ### < #???????? | | ??# ! ! [[ ! #???????? | | ??# ############## ##########+####???????? | | ??#######?????????#### ### ###! #=*= #???????? | +----------------------------------------------------+ Best States ------------- Heat Dissipation 45 Energy Generation 14 Energy Capacity 280 Matter Stores 430 Matter Capacity 500 Sight Range 20 Terrain Scan Density 10 Armor Coverage 300 Resistance: KI 20 Evasion (%) 40 Recoil Reduction 1 Item Schematics ----------------- Hcp. Storage Unit | -10/Materials | Hacked Hacking Suite | -8/Materials | Scanalyzed System Shield | -8/Materials | Scanalyzed Lrg. Storage Unit | -8/Materials | Hacked Robot Schematics ------------------ None Fabricated ------------ Nothing Alien Tech Used ----------------- None Achievements -------------- None Challenges ------------ None Game ------ Seed IonicLobotomyWand Manual? 0 Play Time 00:40:50 Cumulative 166.6 hours Start 2020.11.20 @ 18:37:59 End 2020.11.20 @ 20:16:18 Sessions 1 Manual Loads 0 Difficulty Rogue Special Mode Halloween2020/ForbiddenLore Game No. 88 Rogue 88 Adventurer 0 Explorer 0 Win Type - Total 1 Types 1/0/0/0/0/0/0/0/0 Lore% 55 Gallery% 62 Achievement% 50 Wizard Run 0 Options --------- ASCII 1 Keyboard 1 Movement Vi Keybinds 0 Fullscreen 1 Font 16/Terminus Map View 75x55 Tactical HUD 1 Map Filters NONE Filters NONE Steam 1 RUN: f0300db4-4524-4fc9-9a28-1d4370533406